fUSD/lending_fUSD_20260407
["ID","MTS","AMOUNT","RATE_DAILY","PERIOD"]
[419977956,1775580651981,-250.0,0.00016,2]
[419977957,1775580651991,-250.0,0.00016,2]
[419977958,1775580652001,-250.0,0.00016,2]
[419977959,1775580652011,-250.0,0.00016,2]
[419977960,1775580652021,-250.0,0.00016,2]
[419977961,1775580652030,-250.0,0.00016,2]
[419977962,1775580652040,-250.0,0.00016,2]
[419977963,1775580652050,-250.0,0.00016,2]
[419977964,1775580652060,-250.0,0.00016,2]
[419977965,1775580652070,-250.0,0.00016,2]
[419977966,1775580652080,-250.0,0.00016,2]
[419977967,1775580652089,-250.0,0.00016,2]
[419977968,1775580652099,-250.0,0.00016,2]
[419977969,1775580652108,-250.0,0.00016,2]
[419977970,1775580652121,-250.0,0.00016,2]
[419977971,1775580652131,-250.0,0.00016,2]
[419977972,1775580652142,-250.0,0.00016,2]
[419977973,1775580652152,-250.0,0.00016,2]
[419977974,1775580652162,-250.0,0.00016,2]
[419977975,1775580652171,-250.0,0.00016,2]
[419977976,1775580652181,-250.0,0.00016,2]
[419977977,1775580652191,-250.0,0.00016,2]
[419977978,1775580652200,-250.0,0.00016,2]
[419977979,1775580652691,-250.0,0.00016,2]
[419977980,1775580652701,-250.0,0.00016,2]
[419977981,1775580652710,-250.0,0.00016,2]
[419977982,1775580652720,-250.0,0.00016,2]
[419977983,1775580652730,-250.0,0.00016,2]
[419977984,1775580652739,-250.0,0.00016,2]
[419977985,1775580652750,-250.0,0.00016,2]
[419977986,1775580652760,-250.0,0.00016,2]
[419977987,1775580652771,-250.0,0.00016,2]
[419977988,1775580652781,-250.0,0.00016,2]
[419977989,1775580652792,-250.0,0.00016,2]
[419977990,1775580652802,-250.0,0.00016,2]
[419977991,1775580652813,-250.0,0.00016,2]
[419977992,1775580652822,-250.0,0.00016,2]
[419977993,1775580652831,-250.0,0.00016,2]
[419977994,1775580652841,-250.0,0.00016,2]
[419977995,1775580652851,-250.0,0.00016,2]
[419977996,1775580652862,-197.3,0.00016,2]
[419977997,1775580652871,-202310.97823807,0.00016,2]
[419977998,1775580652890,-209292.0750735,0.00016,2]
[419977999,1775580652900,-637423.98168549,0.00016,2]
[419978000,1775580652910,-339029.47302696,0.00016,2]
[419978001,1775580652920,-1642187.86708643,0.00016,2]
[419978002,1775580652931,-14730.0,0.00016,2]
[419978003,1775580653330,-944.0,0.00012875,2]
[419978004,1775580653342,-1104.0,0.000129,2]
[419978005,1775580653352,-493.0,0.00012926,2]
[419978006,1775580653363,-2471.0,0.00015316,2]
[419978007,1775580653372,-106660.78524673,0.00016,2]
[419978008,1775580653385,-5340.95403698,0.00016,2]
[419978009,1775580653398,-346.4546635,0.00016,2]
[419978010,1775580653457,-2920.73831171,0.00016,2]
[419978011,1775580653690,-246.0,0.00012952,2]
[419978012,1775580653700,-223.0,0.00012977,2]
[419978013,1775580653710,-176.75968916,0.00013003,2]
[419978014,1775580653732,-833.24031084,0.00013003,2]
[419978015,1775580653741,-385.0,0.00013028,2]
[419978016,1775580653751,-2501.65788407,0.00016,2]
[419978017,1775580653781,-4930.54698951,0.00016,2]
[419978018,1775580653811,-14138.84958348,0.00016,2]
[419978019,1775580778219,-347.78391043,0.000125,2]
[419978020,1775580778265,-9304.44217914,0.00012592,2]
[419978021,1775580778333,-10000.01,0.00012592,2]
[419978022,1775580778446,-10000.01,0.00012592,2]
[419978023,1775580778597,-10000.01,0.00012592,2]
[419978024,1775580778739,-10000.01,0.00012592,2]
[419978025,1775580778890,-10000.01,0.00012592,2]
[419978026,1775580779043,-10000.01,0.00012592,2]
[419978027,1775580779183,-10000.01,0.00012592,2]
[419978028,1775580779348,-10000.01,0.00012592,2]
[419978029,1775580781404,-10000.01,0.00012592,2]
[419978030,1775580784387,-10000.01,0.00012592,2]
[419978031,1775580784690,-10000.01,0.00012592,2]
[419978032,1775580784828,-10000.01,0.00012592,2]
[419978033,1775580784951,-10000.01,0.00012592,2]
[419978034,1775580785059,-10000.01,0.00012592,2]
[419978035,1775580785170,-10000.01,0.00012592,2]
[419978036,1775580785343,-10000.01,0.00012592,2]
[419978037,1775580785476,-10000.01,0.00012592,2]
[419978038,1775580788125,-10000.01,0.00012592,2]
[419978039,1775580790529,-10000.01,0.00012592,2]
[419978040,1775580790604,-10000.01,0.00012592,2]
[419978041,1775580790739,-10000.01,0.00012592,2]
[419978042,1775580790855,-10000.01,0.00012592,2]
[419978043,1775580790975,-10000.01,0.00012592,2]
[419978044,1775580791102,-10000.01,0.00012592,2]
[419978045,1775580791245,-10000.01,0.00012592,2]
[419978046,1775580793305,-10000.01,0.00012592,2]
[419978047,1775580793320,-10000.01,0.00012592,2]
[419978048,1775580793892,-10000.01,0.00012592,2]
[419978049,1775580794060,-10000.01,0.00012592,2]
[419978050,1775580794175,-10000.01,0.00012592,2]
[419978051,1775580796710,-10000.01,0.00012592,2]
[419978052,1775580796931,-10000.01,0.00012592,2]
[419978053,1775580799626,-10000.01,0.00012592,2]
[419978054,1775580799740,-10000.01,0.00012592,2]
[419978055,1775580799890,-10000.01,0.00012592,2]
[419978056,1775580800034,-10000.01,0.00012592,2]
[419978057,1775580800175,-10000.01,0.00012592,2]
[419978058,1775580802736,-10000.01,0.00012592,2]
[419978059,1775580802882,-10000.01,0.00012592,2]
[419978062,1775581538785,-340.53412943,0.00011726,2]
[419978063,1775581538961,-337.54505367,0.00011726,2]
[419978064,1775581576819,-1700.02,0.00011667,2]
[419978065,1775581576844,-6599.97,0.00011667,2]
[419978067,1775581624522,-300.0,0.00011725,2]
[419978068,1775581624556,-521.9208169,0.00011726,2]
[419978069,1775581624587,-150.0,0.00011726,2]
[419978070,1775581624620,-3056.1683662,0.00011726,2]
[419978071,1775581625167,-1943.8316338,0.00011726,2]
[419978072,1775581625256,-2632.34465391,0.00011816,2]
[419978073,1775581625290,-152.0,0.00011833,3]
[419978074,1775581625322,-150.0,0.00011906,2]
[419978075,1775581625355,-300.0,0.00011906,2]
[419978076,1775581625387,-96.94069218,0.00011907,2]
[419978077,1775581625659,-3337.43930782,0.00011907,2]
[419978078,1775581627399,-250.0,0.00011771,2]
[419978079,1775581627435,-327.39,0.00011907,2]
[419978080,1775581627516,-8845.23,0.00011907,2]
[419978081,1775581631094,-153.91,0.00011907,2]
[419978082,1775581631129,-1086.09,0.00011907,2]
[419978083,1775581631240,-7520.01,0.00011907,2]
[419978084,1775581659938,2973.40879884,8e-05,2]
[419978085,1775581703211,171.33,9.34e-05,2]
[419978086,1775581703414,171.33,0.00010897,2]
[419978088,1775581798410,1500.0,0.00011521,2]
[419978089,1775581815570,3500.01,0.000107,2]
[419978090,1775581815595,5000.01,0.000107,2]
[419978091,1775581815619,5000.01,0.000107,2]
[419978092,1775581815642,5000.01,0.000107,2]
[419978093,1775581815666,10000.01,0.000107,2]
[419978094,1775581815691,2835.78976784,0.000107,2]
[419978095,1775581819266,-3544.18120116,0.000107,2]
[419978096,1775581819324,-5000.01,0.000107,2]
[419978097,1775581819529,-5000.01,0.000107,2]
[419978098,1775581822103,-5000.01,0.000107,2]
[419978099,1775581822320,-5000.01,0.000107,2]
[419978100,1775581822403,-5000.01,0.000107,2]
[419978101,1775581822496,-5000.01,0.000107,2]
[419978102,1775581824644,-4880.020969,0.000107,2]
[419978103,1775581824719,-239.968062,0.000107,2]
[419978104,1775581824750,-2000.0,0.00011682,2]
[419978105,1775581824779,-520.073876,0.00011828,2]
[419978106,1775581824905,-4479.926124,0.00011828,2]
[419978116,1775581831885,-2710.12979944,0.00011973,2]
[419978117,1775581831942,-620.42829203,0.00011973,2]
[419978118,1775581831953,-1042.95,0.00011973,2]
[419978119,1775581831993,-626.49190853,0.00011973,2]
[419978120,1775581832002,-484.11888966,0.00012182,2]
[419978121,1775581832013,-715.88111034,0.00012182,2]
[419978122,1775581832024,-300.0,0.00012183,2]
[419978123,1775581832033,-300.0,0.00012183,2]
[419978124,1775581832043,-300.0,0.00012183,2]
[419978125,1775581832052,-300.0,0.00012183,2]
[419978126,1775581832063,-5000.0,0.00012184,2]
[419978127,1775581832072,-166.66,0.00012264,2]
[419978128,1775581832082,-150.0,0.00012318,2]
[419978129,1775581832092,-9999.99,0.00012319,2]
[419978130,1775581832102,-3209.4,0.00012319,2]
[419978131,1775581832111,-999.99,0.00012319,2]
[419978132,1775581832121,-9572.89,0.00012319,2]
[419978133,1775581832131,-150.99,0.00012319,2]
[419978134,1775581832141,-1000.0,0.00012367,2]
[419978135,1775581832151,-1000.0,0.00012367,2]
[419978136,1775581832160,-5004.74401654,0.00012368,2]
[419978137,1775581832170,-9999.99,0.00012368,2]
[419978138,1775581832179,-150.99,0.00012368,2]
[419978139,1775581832189,-9999.99,0.00012368,2]
[419978140,1775581832198,-299.99,0.00012368,2]
[419978141,1775581832208,-151.0,0.00012385,2]
[419978142,1775581832217,-151.0,0.00012388,2]
[419978143,1775581832226,-10632.85304553,0.00012392,2]
[419978144,1775581832235,-150.0,0.000124,2]
[419978145,1775581832244,-171.33,0.00012453,2]
[419978146,1775581832252,-79040.78115678,0.00012491,2]
[419978147,1775581832264,-123768.24916602,0.00012491,2]
[419978148,1775581832275,-154672.72384538,0.00012491,2]
[419978149,1775581832287,-57238.31883182,0.00012491,2]
[419978150,1775581832296,-2100.0066,0.00012492,2]
[419978151,1775581832305,-2500.0,0.00012492,2]
[419978152,1775581832314,-1423.61343031,0.00012492,2]
[419978153,1775581832324,-358.241,0.00012493,2]
[419978154,1775581832333,-6320.788,0.00012493,2]
[419978155,1775581832343,-3064.2353541,0.00012499,2]
[419978156,1775581832353,-500.0,0.000125,2]
[419978157,1775581832362,-150.0,0.000125,2]
[419978158,1775581832372,-1153.0,0.00012519,2]
[419978159,1775581832382,-473.0,0.0001252,2]
[419978160,1775581832391,-1714.0,0.00012525,2]
[419978161,1775581832401,-792.0,0.00012544,2]
[419978162,1775581832409,-309.0,0.00012545,2]
[419978163,1775581832419,-1585.0,0.0001255,2]
[419978164,1775581832428,-387.33,0.00012567,2]
[419978165,1775581832438,-1380.0,0.00012569,2]
[419978166,1775581832447,-500.0,0.00012572,2]
[419978167,1775581832458,-500.0,0.00012572,2]
[419978168,1775581832469,-500.0,0.00012572,2]
[419978169,1775581832478,-500.0,0.00012572,2]
[419978170,1775581832487,-500.0,0.00012572,2]
[419978171,1775581832496,-500.0,0.00012572,2]
[419978172,1775581832505,-500.0,0.00012572,2]
[419978173,1775581832513,-500.0,0.00012572,2]
[419978174,1775581832522,-500.0,0.00012572,2]
[419978175,1775581832530,-500.0,0.00012572,2]
[419978176,1775581832539,-500.0,0.00012572,2]
[419978177,1775581832547,-500.0,0.00012572,2]
[419978178,1775581832556,-500.0,0.00012572,2]
[419978179,1775581832566,-500.0,0.00012572,2]
[419978180,1775581832575,-500.0,0.00012572,2]
[419978181,1775581832585,-257.84883603,0.00012572,2]
[419978182,1775581832595,-500.0,0.00012572,2]
[419978183,1775581832605,-500.0,0.00012572,2]
[419978184,1775581832614,-500.0,0.00012572,2]
[419978185,1775581832624,-500.0,0.00012572,2]
[419978186,1775581832634,-500.0,0.00012572,2]
[419978187,1775581832643,-500.0,0.00012572,2]
[419978188,1775581832652,-500.0,0.00012572,2]
[419978189,1775581832661,-500.0,0.00012572,2]
[419978190,1775581832671,-500.0,0.00012572,2]
[419978191,1775581832681,-500.0,0.00012572,2]
[419978192,1775581832690,-500.0,0.00012572,2]
[419978193,1775581832700,-500.0,0.00012572,2]
[419978194,1775581832709,-500.0,0.00012572,2]
[419978195,1775581832719,-500.0,0.00012572,2]
[419978196,1775581832730,-232.00571695,0.00012573,2]
[419978197,1775581832741,-500.0,0.00012573,2]
[419978198,1775581832750,-500.0,0.00012573,2]
[419978199,1775581832760,-199.90943792,0.00012573,2]
[419978200,1775581832769,-500.0,0.00012573,2]
[419978201,1775581832779,-500.0,0.00012573,2]
[419978202,1775581832788,-500.0,0.00012573,2]
[419978203,1775581832798,-500.0,0.00012573,2]
[419978204,1775581832809,-500.0,0.00012573,2]
[419978205,1775581832818,-501.03587191,0.00012573,2]
[419978206,1775581832827,-500.0,0.00012573,2]
[419978207,1775581832837,-500.0,0.00012573,2]
[419978208,1775581832846,-500.0,0.00012573,2]
[419978209,1775581832856,-500.0,0.00012573,2]
[419978210,1775581832865,-1811.0,0.00012575,2]
[419978211,1775581832875,-782.50449402,0.00012582,2]
[419978212,1775581832884,-200.0,0.00012583,2]
[419978213,1775581832894,-1199.20597015,0.00012583,2]
[419978214,1775581832904,-14066.49108283,0.0001259,2]
[419978215,1775581832914,-500.0,0.00012591,2]
[419978216,1775581832924,-225.21190618,0.00012591,2]
[419978217,1775581832934,-500.0,0.00012591,2]
[419978218,1775581832943,-619.70773548,0.00012591,2]
[419978219,1775581832954,-257.9551103,0.00012591,2]
[419978220,1775581832963,-34865.22143945,0.00012592,2]
[419978221,1775581833026,-402.11590291,0.00012592,2]
[419978222,1775581838075,-7060.92014268,0.00012592,2]
[419978223,1775581838130,-3701.07149798,0.00012592,2]
[419978224,1775581838185,-2054665.83883784,0.00012592,2]
[419978225,1775581838195,-151.0,0.00012592,2]
[419978226,1775581838204,-249.59011134,0.00012592,2]
[419978227,1775581838213,-150.0,0.000126,2]
[419978228,1775581838222,-150.0,0.000126,2]
[419978229,1775581838231,-150.0,0.000126,2]
[419978230,1775581838240,-150.0,0.000126,2]
[419978231,1775581838249,-150.0,0.000126,2]
[419978232,1775581838259,-150.0,0.000126,2]
[419978233,1775581838269,-150.0,0.000126,2]
[419978234,1775581838278,-150.0,0.000126,2]
[419978235,1775581838287,-150.0,0.000126,2]
[419978236,1775581838296,-150.0,0.000126,2]
[419978237,1775581838305,-150.0,0.000126,2]
[419978238,1775581838315,-150.0,0.000126,2]
[419978239,1775581838324,-1822.0,0.000126,2]
[419978240,1775581838333,-12447.501,0.00012601,2]
[419978241,1775581838343,-1000.0,0.00012601,2]
[419978242,1775581838353,-150.0,0.00012617,2]
[419978243,1775581838362,-171.0,0.00012625,2]
[419978244,1775581838372,-212.0,0.0001265,2]
[419978245,1775581838381,-150.0,0.00012674,2]
[419978246,1775581838390,-1639.0,0.00012675,2]
[419978247,1775581838401,-150.0,0.00012688,2]
[419978248,1775581838410,-584.0,0.000127,2]
[419978249,1775581838419,-150.0,0.00012717,2]
[419978250,1775581838428,-150.0,0.0001274,2]
[419978251,1775581838438,-661.72690801,0.00012745,2]
[419978252,1775581838447,-150.0,0.00012747,2]
[419978253,1775581838456,-166.66,0.0001277,2]
[419978254,1775581838464,-150.0,0.00012775,2]
[419978255,1775581838474,-150.0,0.00012775,2]
[419978256,1775581838483,-150.0,0.00012775,2]
[419978257,1775581838493,-10632.85304545,0.00012782,2]
[419978258,1775581838502,-13514.8334247,0.0001279,2]
[419978259,1775581838512,-3375.6933555,0.0001279,2]
[419978260,1775581838521,-6440.4079285,0.0001279,2]
[419978261,1775581838529,-150.0,0.00012821,2]
[419978262,1775581838538,-150.0,0.00012833,2]
[419978263,1775581838547,-150.0,0.00012833,2]
[419978264,1775581838556,-150.0,0.00012833,2]
[419978265,1775581838565,-250.0,0.00012834,2]
[419978266,1775581838574,-500.0,0.00012845,2]
[419978267,1775581838583,-5000.0,0.0001285,2]
[419978268,1775581838592,-193.0,0.0001285,2]
[419978269,1775581838601,-366.72962348,0.0001285,2]
[419978270,1775581838610,-5000.0,0.0001285,2]
[419978271,1775581838620,-150.0,0.00012863,2]
[419978272,1775581838630,-150.0,0.0001288,2]
[419978273,1775581838639,-150.0,0.00012895,2]
[419978274,1775581838648,-193.0,0.00012898,2]
[419978275,1775581838658,-250.0,0.00012899,2]
[419978276,1775581838667,-19925.0006802,0.000129,2]
[419978277,1775581838676,-150.0,0.0001295,2]
[419978278,1775581838685,-150.0,0.0001295,2]
[419978279,1775581838694,-150.0,0.0001295,2]
[419978280,1775581838704,-150.0,0.0001295,2]
[419978281,1775581838713,-150.0,0.0001295,2]
[419978282,1775581838723,-150.0,0.00012968,2]
[419978283,1775581838732,-1423.61343027,0.00012979,2]
[419978284,1775581838742,-19093.35381129,0.00012999,2]
[419978285,1775581838752,-250.0,0.00013,2]
[419978286,1775581838764,-150.0,0.0001302,2]
[419978287,1775581838774,-150.0,0.00013038,2]
[419978288,1775581838784,-150.0,0.00013042,2]
[419978289,1775581838794,-150.0,0.00013067,2]
[419978290,1775581838803,-150.0,0.00013067,2]
[419978291,1775581838813,-150.0,0.00013067,2]
[419978292,1775581838823,-501.0,0.000131,2]
[419978293,1775581838834,-150.0,0.00013116,2]
[419978294,1775581838844,-500.0,0.00013119,2]
[419978295,1775581838853,-1000.0,0.00013121,2]
[419978296,1775581838863,-1000.0,0.00013121,2]
[419978297,1775581838872,-500.0,0.00013121,2]
[419978298,1775581838882,-1000.0,0.00013121,2]
[419978299,1775581838891,-1000.0,0.00013121,2]
[419978300,1775581838900,-1000.0,0.00013121,2]
[419978301,1775581838909,-1000.0,0.00013121,2]
[419978302,1775581838918,-503.19697935,0.00013121,2]
[419978303,1775581838927,-659.88642084,0.00013121,2]
[419978304,1775581838936,-1000.0,0.00013121,2]
[419978305,1775581838946,-150.0,0.00013125,2]
[419978306,1775581838955,-150.0,0.00013125,2]
[419978307,1775581838963,-150.0,0.00013125,2]
[419978308,1775581838972,-325.67572742,0.00013131,2]
[419978309,1775581838982,-2000.0,0.00013142,2]
[419978310,1775581838991,-208.28084586,0.00013151,2]
[419978311,1775581839001,-500.0,0.00013151,2]
[419978312,1775581839011,-500.0,0.00013151,2]
[419978313,1775581839022,-500.0,0.00013151,2]
[419978314,1775581839032,-500.0,0.00013151,2]
[419978315,1775581839042,-500.0,0.00013151,2]
[419978316,1775581839052,-500.0,0.00013151,2]
[419978317,1775581839062,-500.0,0.00013151,2]
[419978318,1775581839072,-500.0,0.00013151,2]
[419978319,1775581839081,-500.0,0.00013151,2]
[419978320,1775581839091,-500.0,0.00013151,2]
[419978321,1775581839100,-500.0,0.00013151,2]
[419978322,1775581839110,-500.0,0.00013151,2]
[419978323,1775581839120,-436.48877466,0.00013151,2]
[419978324,1775581839129,-150.0,0.00013151,2]
[419978325,1775581839140,-500.0,0.00013151,2]
[419978326,1775581839149,-150.0,0.00013151,2]
[419978327,1775581839159,-500.01643822,0.00013151,2]
[419978328,1775581839168,-150.0,0.00013151,2]
[419978330,1775581839178,-287.9956919,0.00013151,2]
[419978332,1775581839187,-500.0,0.00013151,2]
[419978334,1775581839196,-150.0,0.00013151,2]
[419978336,1775581839205,-500.0,0.00013151,2]
[419978337,1775581839214,-500.0,0.00013151,2]
[419978340,1775581839224,-150.0,0.00013151,2]
[419978342,1775581839233,-524.8115188,0.00013151,2]
[419978344,1775581839243,-150.0,0.00013151,2]
[419978346,1775581839252,-500.0,0.00013151,2]
[419978348,1775581839261,-289.89258684,0.00013151,2]
[419978349,1775581839270,-150.0,0.00013151,2]
[419978351,1775581839279,-500.0,0.00013151,2]
[419978354,1775581839289,-150.0,0.00013151,2]
[419978355,1775581839298,-150.0,0.00013151,2]
[419978402,1775581839680,-500.0,0.00013151,2]
[419978404,1775581839689,-1538.0,0.00013151,2]
[419978406,1775581839699,-150.0,0.00013151,2]
[419978408,1775581839710,-500.0,0.00013151,2]
[419978410,1775581839719,-1538.0,0.00013151,2]
[419978412,1775581839728,-156.32549117,0.00013151,2]
[419978414,1775581839738,-500.0,0.00013151,2]
[419978416,1775581839747,-1538.0,0.00013151,2]
[419978418,1775581839756,-500.0,0.00013151,2]
[419978419,1775581839766,-1538.0,0.00013151,2]
[419978421,1775581839776,-1538.0,0.00013151,2]
[419978423,1775581839785,-500.0,0.00013151,2]
[419978425,1775581839795,-1538.0,0.00013151,2]
[419978427,1775581839804,-500.0,0.00013151,2]
[419978429,1775581839813,-1538.0,0.00013151,2]
[419978431,1775581839822,-360.01646101,0.00013151,2]
[419978433,1775581839832,-1538.0,0.00013151,2]
[419978435,1775581839841,-1538.0,0.00013151,2]
[419978437,1775581839850,-1538.0,0.00013151,2]
[419978439,1775581839859,-1538.0,0.00013151,2]
[419978441,1775581839869,-1538.0,0.00013151,2]
[419978443,1775581839879,-1538.0,0.00013151,2]
[419978445,1775581839888,-1538.0,0.00013151,2]
[419978447,1775581839897,-1538.0,0.00013151,2]
[419978449,1775581839906,-1538.0,0.00013151,2]
[419978451,1775581839916,-1538.0,0.00013151,2]
[419978453,1775581839925,-1538.0,0.00013151,2]
[419978455,1775581839934,-1538.0,0.00013151,2]
[419978457,1775581839943,-1538.0,0.00013151,2]
[419978459,1775581839952,-1538.0,0.00013151,2]
[419978461,1775581839961,-1538.0,0.00013151,2]
[419978463,1775581839971,-1538.0,0.00013151,2]
[419978465,1775581839980,-1553.30229004,0.00013151,2]
[419978467,1775581839990,-500.0,0.00013151,2]
[419978469,1775581840000,-414.12404802,0.00013151,2]
[419978471,1775581840010,-150.0,0.00013151,2]
[419978473,1775581840019,-150.0,0.00013151,2]
[419978475,1775581840029,-500.0,0.00013151,2]
[419978477,1775581840039,-153.24085071,0.00013151,2]
[419978479,1775581840048,-500.0,0.00013151,2]
[419978481,1775581840057,-266.52915409,0.00013151,2]
[419978483,1775581840066,-500.0,0.00013151,2]
[419978485,1775581840075,-500.0,0.00013151,2]
[419978487,1775581840085,-500.0,0.00013151,2]
[419978489,1775581840095,-500.0,0.00013151,2]
[419978492,1775581840105,-500.0,0.00013151,2]
[419978495,1775581840116,-500.0,0.00013151,2]
[419978498,1775581840127,-232.18984881,0.00013151,2]
[419978501,1775581840138,-500.0,0.00013151,2]
[419978505,1775581840150,-500.0,0.00013151,2]
[419978507,1775581840161,-500.0,0.00013151,2]
[419978508,1775581840172,-500.0,0.00013151,2]
[419978510,1775581840183,-500.0,0.00013151,2]
[419978512,1775581840194,-500.0,0.00013151,2]
[419978515,1775581840209,-500.0,0.00013151,2]
[419978517,1775581840219,-500.0,0.00013151,2]
[419978519,1775581840229,-500.0,0.00013151,2]
[419978522,1775581840240,-500.0,0.00013151,2]
[419978525,1775581840250,-500.0,0.00013151,2]
[419978527,1775581840260,-500.0,0.00013151,2]
[419978529,1775581840270,-500.0,0.00013151,2]
[419978531,1775581840280,-500.0,0.00013151,2]
[419978533,1775581840290,-500.0,0.00013151,2]
[419978535,1775581840299,-500.0,0.00013151,2]
[419978537,1775581840316,-499.0702747,0.00013151,2]
[419978539,1775581840326,-500.0,0.00013151,2]
[419978541,1775581840336,-500.0,0.00013151,2]
[419978543,1775581840345,-150.0,0.00013151,2]
[419978545,1775581840355,-500.0,0.00013151,2]
[419978547,1775581840367,-271.63434396,0.00013151,2]
[419978549,1775581840379,-500.0,0.00013151,2]
[419978551,1775581840389,-500.0,0.00013151,2]
[419978553,1775581840399,-500.0,0.00013151,2]
[419978555,1775581840408,-500.0,0.00013151,2]
[419978557,1775581840419,-500.0,0.00013151,2]
[419978559,1775581840429,-500.0,0.00013151,2]
[419978561,1775581840438,-500.0,0.00013151,2]
[419978563,1775581840449,-500.0,0.00013151,2]
[419978565,1775581840459,-500.0,0.00013151,2]
[419978567,1775581840470,-500.0,0.00013151,2]
[419978569,1775581840480,-500.0,0.00013151,2]
[419978571,1775581840490,-500.0,0.00013151,2]
[419978573,1775581840499,-500.0,0.00013151,2]
[419978575,1775581840509,-220.30165745,0.00013151,2]
[419978577,1775581840518,-500.0,0.00013151,2]
[419978579,1775581840528,-500.0,0.00013151,2]
[419978581,1775581840538,-150.0,0.00013151,2]
[419978583,1775581840547,-500.0,0.00013151,2]
[419978586,1775581840558,-500.0,0.00013151,2]
[419978588,1775581840567,-500.0,0.00013151,2]
[419978590,1775581840577,-329.41546349,0.00013151,2]
[419978592,1775581840586,-500.0,0.00013151,2]
[419978594,1775581840596,-500.0,0.00013151,2]
[419978596,1775581840605,-500.0,0.00013151,2]
[419978598,1775581840617,-379.35266898,0.00013151,2]
[419978600,1775581840627,-500.0,0.00013151,2]
[419978602,1775581840638,-500.0,0.00013151,2]
[419978604,1775581840648,-172.26565362,0.00013151,2]
[419978606,1775581840658,-165.41506208,0.00013151,2]
[419978608,1775581840667,-150.0,0.00013151,2]
[419978610,1775581840676,-150.0,0.00013151,2]
[419978612,1775581840685,-729.0,0.00013151,2]
[419978614,1775581840694,-150.0,0.00013151,2]
[419978615,1775581840703,-729.0,0.00013151,2]
[419978617,1775581840711,-150.0,0.00013151,2]
[419978619,1775581840721,-729.0,0.00013151,2]
[419978621,1775581840731,-274.28711703,0.00013151,2]
[419978623,1775581840741,-729.0,0.00013151,2]
[419978625,1775581840751,-729.0,0.00013151,2]
[419978627,1775581840761,-729.0,0.00013151,2]
[419978629,1775581840770,-729.0,0.00013151,2]
[419978631,1775581840780,-729.0,0.00013151,2]
[419978633,1775581840790,-729.0,0.00013151,2]
[419978635,1775581840800,-500.0,0.00013151,2]
[419978637,1775581840810,-729.0,0.00013151,2]
[419978639,1775581840819,-516.75450482,0.00013151,2]
[419978641,1775581840829,-729.0,0.00013151,2]
[419978643,1775581840839,-500.0,0.00013151,2]
[419978645,1775581840849,-729.0,0.00013151,2]
[419978647,1775581840859,-500.0,0.00013151,2]
[419978649,1775581840870,-500.0,0.00013151,2]
[419978651,1775581840880,-729.0,0.00013151,2]
[419978653,1775581840891,-642.81768611,0.00013151,2]
[419978655,1775581840901,-500.0,0.00013151,2]
[419978657,1775581840911,-729.0,0.00013151,2]
[419978658,1775581840921,-500.0,0.00013151,2]